[Event "Turkish Second League 2019"]
[Site "Konya"]
[Date "2019.07.25"]
[Round "6"]
[White "Kizilkus, Akin"]
[Black "Can, Furkan"]
[Result "1/2-1/2"]
[ECO "D94"]
[WhiteElo "2162"]
[BlackElo "1900"]
[Annotator "NA"]
[PlyCount "132"]
[EventDate "2019.07.22"]
[EventType "team-tourn"]
[EventCountry "TUR"]
[SourceTitle "playchess.com"]
[Source "ChessBase"]
[SourceQuality "1"]
[TimeControl "5400+30"]

1. d4 {[%emt 0:00:30]} d5 {[%emt 0:00:30]} 2. c4 {[%emt 0:00:30]} c6 {[%emt 0:00:30]} 3. e3 {[%emt 0:00:30]} Nf6 {[%emt 0:01:30]} 4. Nc3 {[%emt 0:00:30]} g6 {[%emt 0:04:30]} 5. Nf3 {[%emt 0:00:00]} Bg7 {[%emt 0:00:30]} 6. Be2 {[%emt 0:00:00]} O-O {[%emt 0:00:30]} 7. O-O {[%emt 0:00:30]} dxc4 {[%emt 0:10:30]} 8. Bxc4 {[%emt 0:00:30]} b5 {[%emt 0:00:30]} 9. Be2 {[%emt 0:01:30]} a6 {[%emt 0:02:30]} 10. a3 {[%emt 0:02:30]} Nd5 {[%emt 0:02:30]} 11. Ne4 {[%emt 0:01:30]} Nd7 {[%emt 0:00:30]} 12. Bd2 {[%emt 0:01:30]} c5 {[%emt 0:09:30]} 13. dxc5 {[%emt 0:04:30]} Bb7 {[%emt 0:04:30]} 14. Rc1 {[%emt 0:04:30]} Nxe3 {[%emt 0:06:30]} 15. Bxe3 {[%emt 0:03:30]} Bxe4 {[%emt 0:00:00]} 16. Qb3 {[%emt 0:25:30]} Qc7 {[%emt 0:05:00]} 17. Rfd1 {[%emt 0:01:30]} Rad8 {[%emt 0:05:30]} 18. a4 {[%emt 0:04:30]} bxa4 {[%emt 0:01:30]} 19. Qxa4 {[%emt 0:01:30]} Bc6 {[%emt 0:00:00]} 20. Qxa6 {[%emt 0:02:30]} Bxb2 {[%emt 0:05:00]} 21. Rb1 {[%emt 0:00:30]} Ra8 {[%emt 0:03:30]} 22. Qc4 {[%emt 0:06:30]} Ne5 {[%emt 0:01:30]} 23. Nxe5 {[%emt 0:01:30]} Bxe5 {[%emt 0:00:00]} 24. h3 {[%emt 0:03:30]} Rfd8 {[%emt 0:03:00]} 25. Rxd8+ {[%emt 0:02:30]} Rxd8 {[%emt 0:00:30]} 26. Rb6 {[%emt 0:04:30]} Ra8 {[%emt 0:00:30]} 27. Rb1 {[%emt 0:03:30]} h5 {[%emt 0:12:30]} 28. Bd3 {[%emt 0:04:26]} Kg7 {[%emt 0:01:00]} 29. Re1 {[%emt 0:03:06]} Ra1 {[%emt 0:06:04]} 30. Rxa1 {[%emt 0:01:23]} Bxa1 {[%emt 0:00:06]} 31. f4 {[%emt 0:01:34]} Bf6 {[%emt 0:01:21]} 32. Be4 {[%emt 0:00:56]} Qb7 {[%emt 0:01:22]} 33. Bxc6 {[%emt 0:00:30]} Qxc6 {[%emt 0:00:00]} 34. Qd3 {[%emt 0:01:06]} h4 {[%emt 0:01:06]} 35. Qc4 {[%emt 0:01:17]} Kg8 {[%emt 0:01:31]} 36. Kf2 {[%emt 0:00:54]} Kg7 {[%emt 0:02:42]} 37. Qd3 {[%emt 0:00:22]} Qa4 {[%emt 0:02:34]} 38. Qd5 {[%emt 0:01:13]} Qc2+ {[%emt 0:00:05]} 39. Kf3 {[%emt 0:00:19]} e6 {[%emt 0:00:24]} 40. Qd7 {[%emt 0:00:35]} Qc4 {[%emt 0:01:22]} 41. c6 {[%emt 0:00:32]} Qf1+ {[%emt 0:00:19]} 42. Bf2 {[%emt 0:00:17]} Qb1 {[%emt 0:02:55]} 43. c7 {[%emt 0:02:01]} Qb7+ {[%emt 0:00:06]} 44. Ke2 {[%emt 0:03:15]} Qb2+ {[%emt 0:01:28]} 45. Kf1 {[%emt 0:01:16]} Qc1+ {[%emt 0:00:27]} 46. Ke2 {[%emt 0:00:38]} Qb2+ {[%emt 0:00:36]} 47. Ke3 {[%emt 0:00:59]} Qb3+ {[%emt 0:00:52]} 48. Ke4 {[%emt 0:01:09]} Qb7+ {[%emt 0:00:27]} 49. Ke3 {[%emt 0:00:48]} Qb3+ {[%emt 0:00:21]} 50. Kd2 {[%emt 0:01:03]} Qb2+ {[%emt 0:00:47]} 51. Kd1 {[%emt 0:00:43]} Qb1+ {[%emt 0:00:29]} 52. Ke2 {[%emt 0:00:10]} Qb2+ {[%emt 0:00:15]} 53. Kf3 {[%emt 0:00:23]} Qb7+ {[%emt 0:00:10]} 54. Ke3 {[%emt 0:00:40]} Qb3+ {[%emt 0:00:12]} 55. Ke2 {[%emt 0:00:36]} Qb2+ {[%emt 0:00:34]} 56. Kf1 {[%emt 0:01:11]} Qc1+ {[%emt 0:00:38]} 57. Ke2 {[%emt 0:00:24]} Qb2+ {[%emt 0:00:11]} 58. Kd3 {[%emt 0:00:53]} Qb3+ {[%emt 0:00:23]} 59. Ke4 {[%emt 0:00:40]} Qb7+ {[%emt 0:00:42]} 60. Kd3 {[%emt 0:00:23]} Qb3+ {[%emt 0:00:13]} 61. Ke2 {[%emt 0:00:18]} Qb2+ {[%emt 0:00:23]} 62. Qd2 {[%emt 0:00:38]} Qb5+ {[%emt 0:00:26]} 63. Kd1 {[%emt 0:00:47]} Qb1+ {[%emt 0:01:15]} 64. Ke2 {[%emt 0:00:30]} Qe4+ {[%emt 0:00:30]} 65. Kd1 {[%emt 0:00:30]} Qb1+ {[%emt 0:00:30]} 66. Ke2 {[%emt 0:00:30]} Qe4+ {[%emt 0:00:30]} 1/2-1/2

[Event "Turkish Second League 2019"]
[Site "Konya"]
[Date "2019.07.25"]
[Round "6"]
[White "Zor, Alber Kadir"]
[Black "Yigit, Ahmet Yasir"]
[Result "1-0"]
[ECO "D02"]
[WhiteElo "2160"]
[BlackElo "1962"]
[Annotator "NA"]
[PlyCount "54"]
[EventDate "2019.07.22"]
[EventType "team-tourn"]
[EventCountry "TUR"]
[SourceTitle "playchess.com"]
[Source "ChessBase"]
[SourceQuality "1"]
[TimeControl "5400+30"]

1. d4 {[%emt 0:00:30]} Nf6 {[%emt 0:01:30]} 2. Nf3 {[%emt 0:00:00]} d5 {[%emt 0:00:00]} 3. Bf4 {[%emt 0:00:00]} c5 {[%emt 0:00:00]} 4. e3 {[%emt 0:00:30]} Nc6 {[%emt 0:00:00]} 5. Nbd2 {[%emt 0:00:00]} Bg4 {[%emt 0:02:00]} 6. c3 {[%emt 0:03:00]} Qb6 {[%emt 0:00:30]} 7. dxc5 {[%emt 0:06:30]} Qxb2 {[%emt 0:40:30]} 8. Rb1 {[%emt 0:18:30]} Qxc3 {[%emt 0:00:30]} 9. Rxb7 {[%emt 0:00:30]} Bxf3 {[%emt 0:00:30]} 10. gxf3 {[%emt 0:00:00]} e5 {[%emt 0:02:30]} 11. Bb5 {[%emt 0:08:00]} Rc8 {[%emt 0:13:30]} 12. Bxc6+ {[%emt 0:08:30]} Kd8 {[%emt 0:00:30]} 13. Bg5 {[%emt 0:15:30]} Rxc6 {[%emt 0:00:00]} 14. Qa4 {[%emt 0:01:30]} Qxc5 {[%emt 0:20:08]} 15. O-O {[%emt 0:00:00]} Bd6 {[%emt 0:01:20]} 16. Nb3 {[%emt 0:01:00]} Qc4 {[%emt 0:01:56]} 17. Qa5+ {[%emt 0:04:30]} Kc8 {[%emt 0:09:26]} 18. Rxa7 {[%emt 0:08:30]} Bc7 {[%emt 0:01:29]} 19. Rxc7+ {[%emt 0:00:30]} Rxc7 {[%emt 0:00:30]} 20. Qa8+ {[%emt 0:00:00]} Kd7 {[%emt 0:00:00]} 21. Qxh8 {[%emt 0:00:00]} Ne8 {[%emt 0:01:49]} 22. Qxh7 {[%emt 0:02:30]} f6 {[%emt 0:00:24]} 23. Bh4 {[%emt 0:01:30]} Qa6 {[%emt 0:01:03]} 24. Qb1 {[%emt 0:00:54]} Ke7 {[%emt 0:00:28]} 25. Bg3 {[%emt 0:02:11]} Nd6 {[%emt 0:00:17]} 26. Rd1 {[%emt 0:00:25]} Ke6 {[%emt 0:01:20]} 27. f4 {[%emt 0:05:46]} Ne4 {[%emt 0:01:20]} 1-0

[Event "Turkish Second League 2019"]
[Site "Konya"]
[Date "2019.07.25"]
[Round "6"]
[White "Metin, Mehmet"]
[Black "Tepe, Efe Can"]
[Result "1/2-1/2"]
[ECO "E91"]
[WhiteElo "2150"]
[BlackElo "2150"]
[Annotator "NA"]
[PlyCount "93"]
[EventDate "2019.07.22"]
[EventType "team-tourn"]
[EventCountry "TUR"]
[SourceTitle "playchess.com"]
[Source "ChessBase"]
[SourceQuality "1"]
[TimeControl "5400+30"]

1. c4 {[%emt 0:00:30]} Nf6 {[%emt 0:00:30]} 2. Nc3 {[%emt 0:00:30]} g6 {[%emt 0:03:30]} 3. d4 {[%emt 0:01:30]} Bg7 {[%emt 0:01:30]} 4. e4 {[%emt 0:00:30]} d6 {[%emt 0:00:00]} 5. Be2 {[%emt 0:00:00]} O-O {[%emt 0:01:00]} 6. Nf3 {[%emt 0:00:00]} c5 {[%emt 0:01:30]} 7. O-O {[%emt 0:02:30]} Bg4 {[%emt 0:03:30]} 8. Be3 {[%emt 0:05:30]} Bxf3 {[%emt 0:01:30]} 9. Bxf3 {[%emt 0:00:30]} cxd4 {[%emt 0:00:00]} 10. Bxd4 {[%emt 0:00:00]} Nc6 {[%emt 0:00:00]} 11. Be3 {[%emt 0:00:00]} Rc8 {[%emt 0:03:30]} 12. Be2 {[%emt 0:01:30]} Qa5 {[%emt 0:03:30]} 13. Rc1 {[%emt 0:12:30]} Nd7 {[%emt 0:12:30]} 14. Qd2 {[%emt 0:02:30]} Nc5 {[%emt 0:03:30]} 15. Bh6 {[%emt 0:10:30]} Ne6 {[%emt 0:08:30]} 16. Bxg7 {[%emt 0:00:30]} Kxg7 {[%emt 0:05:30]} 17. Bg4 {[%emt 0:00:30]} Ne5 {[%emt 0:10:30]} 18. Bxe6 {[%emt 0:00:30]} fxe6 {[%emt 0:00:00]} 19. b3 {[%emt 0:00:30]} Qc5 {[%emt 0:11:00]} 20. Na4 {[%emt 0:10:30]} Qc6 {[%emt 0:00:30]} 21. f4 {[%emt 0:03:30]} Ng4 {[%emt 0:05:30]} 22. Qe2 {[%emt 0:04:30]} Nf6 {[%emt 0:00:00]} 23. e5 {[%emt 0:00:30]} Ne4 {[%emt 0:02:00]} 24. Qe3 {[%emt 0:05:30]} d5 {[%emt 0:02:54]} 25. cxd5 {[%emt 0:02:30]} Qxd5 {[%emt 0:00:06]} 26. Rcd1 {[%emt 0:00:30]} Qc6 {[%emt 0:00:42]} 27. Rde1 {[%emt 0:31:05]} b5 {[%emt 0:01:24]} 28. Qxe4 {[%emt 0:01:13]} bxa4 {[%emt 0:00:05]} 29. bxa4 {[%emt 0:00:11]} Qxe4 {[%emt 0:02:34]} 30. Rxe4 {[%emt 0:00:01]} Rfd8 {[%emt 0:00:14]} 31. Re2 {[%emt 0:00:54]} Rd4 {[%emt 0:01:57]} 32. g3 {[%emt 0:00:17]} Rxa4 {[%emt 0:01:54]} 33. Rb1 {[%emt 0:00:11]} Kf7 {[%emt 0:01:10]} 34. Kg2 {[%emt 0:00:32]} Ra3 {[%emt 0:01:43]} 35. Rb7 {[%emt 0:01:05]} Rc5 {[%emt 0:02:13]} 36. Rd2 {[%emt 0:00:38]} Rd5 {[%emt 0:00:34]} 37. Rc2 {[%emt 0:00:06]} g5 {[%emt 0:01:21]} 38. Rcc7 {[%emt 0:02:23]} gxf4 {[%emt 0:02:58]} 39. Rxe7+ {[%emt 0:00:05]} Kg6 {[%emt 0:00:00]} 40. Rxe6+ {[%emt 0:01:07]} Kf5 {[%emt 0:00:00]} 41. Rf6+ {[%emt 0:00:42]} Kxe5 {[%emt 0:00:02]} 42. Rxf4 {[%emt 0:00:00]} Rd2+ {[%emt 0:00:46]} 43. Rf2 {[%emt 0:00:44]} Rxf2+ {[%emt 0:00:43]} 44. Kxf2 {[%emt 0:00:02]} Rxa2+ {[%emt 0:00:10]} 45. Kf3 {[%emt 0:00:01]} Rxh2 {[%emt 0:01:40]} 46. Rxa7 {[%emt 0:00:03]} Kf6 {[%emt 0:00:12]} 47. Ke4 {[%emt 0:00:38]} 1/2-1/2

[Event "Turkish Second League 2019"]
[Site "Konya"]
[Date "2019.07.25"]
[Round "6"]
[White "Tasci, Onur"]
[Black "Darban, Morteza"]
[Result "0-1"]
[ECO "C07"]
[WhiteElo "2063"]
[BlackElo "2282"]
[Annotator "NA"]
[PlyCount "46"]
[EventDate "2019.07.22"]
[EventType "team-tourn"]
[EventCountry "TUR"]
[SourceTitle "playchess.com"]
[Source "ChessBase"]
[SourceQuality "1"]
[TimeControl "5400+30"]

1. e4 {[%emt 0:00:30]} e6 {[%emt 0:00:30]} 2. d4 {[%emt 0:00:30]} d5 {[%emt 0:00:30]} 3. Nd2 {[%emt 0:00:30]} c5 {[%emt 0:02:30]} 4. c3 {[%emt 0:03:30]} cxd4 {[%emt 0:02:30]} 5. cxd4 {[%emt 0:00:00]} dxe4 {[%emt 0:01:30]} 6. Nxe4 {[%emt 0:01:00]} Be7 {[%emt 0:00:30]} 7. Nf3 {[%emt 0:01:30]} Nf6 {[%emt 0:00:30]} 8. Nxf6+ {[%emt 0:07:30]} Bxf6 {[%emt 0:01:30]} 9. Bc4 {[%emt 0:02:30]} O-O {[%emt 0:07:30]} 10. O-O {[%emt 0:00:30]} Nc6 {[%emt 0:00:00]} 11. Be3 {[%emt 0:01:30]} b6 {[%emt 0:00:00]} 12. Qd2 {[%emt 0:03:30]} Bb7 {[%emt 0:00:30]} 13. Rfd1 {[%emt 0:00:30]} Rc8 {[%emt 0:03:30]} 14. Rac1 {[%emt 0:00:30]} Ne7 {[%emt 0:10:30]} 15. Ne5 {[%emt 0:05:30]} Ng6 {[%emt 0:17:30]} 16. Ng4 {[%emt 0:16:30]} Rxc4 {[%emt 0:01:30]} 17. Nxf6+ {[%emt 0:06:30]} gxf6 {[%emt 0:00:00]} 18. Rxc4 {[%emt 0:00:30]} Qd5 {[%emt 0:00:00]} 19. f3 {[%emt 0:01:30]} Qxc4 {[%emt 0:00:30]} 20. Rc1 {[%emt 0:00:00]} Qd5 {[%emt 0:00:30]} 21. Rc7 {[%emt 0:00:00]} Rc8 {[%emt 0:01:30]} 22. Qc3 {[%emt 0:01:30]} Rxc7 {[%emt 0:09:30]} 23. Qxc7 {[%emt 0:03:30]} Kg7 {[%emt 0:01:30]} 0-1

[Event "Turkish Second League 2019"]
[Site "Konya"]
[Date "2019.07.25"]
[Round "6"]
[White "Ozdemir, Serhan Berat"]
[Black "Zuberoglu, Ibrahim Berk"]
[Result "0-1"]
[ECO "B27"]
[WhiteElo "1985"]
[BlackElo "1737"]
[Annotator "NA"]
[PlyCount "69"]
[EventDate "2019.07.22"]
[EventType "team-tourn"]
[EventCountry "TUR"]
[SourceTitle "playchess.com"]
[Source "ChessBase"]
[SourceQuality "1"]
[TimeControl "5400+30"]

1. e4 {[%emt 0:00:30]} c5 {[%emt 0:00:30]} 2. Nf3 {[%emt 0:00:00]} g6 {[%emt 0:00:30]} 3. d4 {[%emt 0:00:00]} cxd4 {[%emt 0:00:30]} 4. Qxd4 {[%emt 0:00:00]} Nf6 {[%emt 0:00:00]} 5. e5 {[%emt 0:00:00]} Nc6 {[%emt 0:00:00]} 6. Qa4 {[%emt 0:00:30]} Nd5 {[%emt 0:00:30]} 7. Qe4 {[%emt 0:00:00]} Nb6 {[%emt 0:00:00]} 8. Nc3 {[%emt 0:00:00]} Bg7 {[%emt 0:00:00]} 9. Bf4 {[%emt 0:00:30]} f6 {[%emt 0:03:30]} 10. O-O-O {[%emt 0:06:30]} fxe5 {[%emt 0:01:30]} 11. Nxe5 {[%emt 0:00:30]} O-O {[%emt 0:03:30]} 12. Bc4+ {[%emt 0:07:30]} Nxc4 {[%emt 0:03:30]} 13. Qxc4+ {[%emt 0:00:30]} e6 {[%emt 0:00:30]} 14. Nxc6 {[%emt 0:00:00]} bxc6 {[%emt 0:00:30]} 15. Bd6 {[%emt 0:00:00]} Rxf2 {[%emt 0:05:30]} 16. Ne4 {[%emt 0:11:30]} Rf5 {[%emt 0:06:30]} 17. g4 {[%emt 0:06:30]} Rb5 {[%emt 0:09:30]} 18. c3 {[%emt 0:26:30]} Ba6 {[%emt 0:08:30]} 19. Qa4 {[%emt 0:12:30]} Ra5 {[%emt 0:03:30]} 20. Qb3 {[%emt 0:07:22]} Be2 {[%emt 0:08:30]} 21. Rde1 {[%emt 0:04:52]} Bxg4 {[%emt 0:07:30]} 22. a4 {[%emt 0:03:28]} Bf5 {[%emt 0:04:30]} 23. Kb1 {[%emt 0:03:15]} Rd5 {[%emt 0:09:30]} 24. Bg3 {[%emt 0:00:17]} d6 {[%emt 0:02:30]} 25. Ka2 {[%emt 0:02:06]} Rb8 {[%emt 0:03:27]} 26. Qc4 {[%emt 0:00:01]} Qb6 {[%emt 0:02:09]} 27. b4 {[%emt 0:04:29]} Bxe4 {[%emt 0:03:30]} 28. Qxe4 {[%emt 0:01:03]} Bxc3 {[%emt 0:02:36]} 29. Qxe6+ {[%emt 0:00:04]} Kh8 {[%emt 0:00:00]} 30. Bxd6 {[%emt 0:00:40]} Qf2+ {[%emt 0:01:41]} 31. Re2 {[%emt 0:02:31]} Rxd6 {[%emt 0:00:56]} 32. Rb1 {[%emt 0:01:51]} Rxe6 {[%emt 0:02:28]} 33. Rxf2 {[%emt 0:00:01]} Bxb4 {[%emt 0:00:00]} 34. a5 {[%emt 0:00:12]} Re5 {[%emt 0:00:51]} 35. Rf4 {[%emt 0:00:36]} 0-1

[Event "Turkish Second League 2019"]
[Site "Konya"]
[Date "2019.07.25"]
[Round "6"]
[White "Danaci, Ege"]
[Black "Turkmen, Yusuf Cagan"]
[Result "1/2-1/2"]
[ECO "B25"]
[WhiteElo "1976"]
[BlackElo "1796"]
[Annotator "NA"]
[PlyCount "62"]
[EventDate "2019.07.22"]
[EventType "team-tourn"]
[EventCountry "TUR"]
[SourceTitle "playchess.com"]
[Source "ChessBase"]
[SourceQuality "1"]
[TimeControl "5400+30"]

1. e4 {[%emt 0:00:30]} c5 {[%emt 0:00:30]} 2. Nc3 {[%emt 0:00:30]} Nc6 {[%emt 0:00:00]} 3. g3 {[%emt 0:00:30]} g6 {[%emt 0:00:00]} 4. Bg2 {[%emt 0:00:30]} Bg7 {[%emt 0:00:30]} 5. d3 {[%emt 0:00:30]} d6 {[%emt 0:00:30]} 6. f4 {[%emt 0:00:30]} e5 {[%emt 0:00:30]} 7. Nh3 {[%emt 0:00:30]} Nge7 {[%emt 0:00:30]} 8. O-O {[%emt 0:04:30]} O-O {[%emt 0:06:30]} 9. f5 {[%emt 0:00:30]} gxf5 {[%emt 0:03:30]} 10. Qh5 {[%emt 0:03:30]} f6 {[%emt 0:02:30]} 11. exf5 {[%emt 0:00:30]} Qe8 {[%emt 0:06:30]} 12. Qxe8 {[%emt 0:05:30]} Rxe8 {[%emt 0:00:30]} 13. g4 {[%emt 0:00:30]} Nd4 {[%emt 0:09:30]} 14. Rf2 {[%emt 0:00:30]} h5 {[%emt 0:04:30]} 15. gxh5 {[%emt 0:03:30]} Bxf5 {[%emt 0:04:30]} 16. Be3 {[%emt 0:11:30]} Rad8 {[%emt 0:08:30]} 17. Ne4 {[%emt 0:06:30]} b6 {[%emt 0:08:30]} 18. c3 {[%emt 0:06:30]} Ndc6 {[%emt 0:11:30]} 19. c4 {[%emt 0:05:30]} Bg4 {[%emt 0:06:30]} 20. h6 {[%emt 0:02:30]} f5 {[%emt 0:01:30]} 21. hxg7 {[%emt 0:09:30]} fxe4 {[%emt 0:01:30]} 22. Bh6 {[%emt 0:07:30]} Kh7 {[%emt 0:06:33]} 23. Rf6 {[%emt 0:00:30]} Ng6 {[%emt 0:01:37]} 24. Bxe4 {[%emt 0:01:30]} Nce7 {[%emt 0:00:16]} 25. Nf2 {[%emt 0:04:30]} Kxh6 {[%emt 0:03:02]} 26. Nxg4+ {[%emt 0:00:30]} Kxg7 {[%emt 0:00:00]} 27. Raf1 {[%emt 0:00:00]} Nf4 {[%emt 0:00:35]} 28. Rh6 {[%emt 0:05:00]} Rh8 {[%emt 0:03:29]} 29. Rxh8 {[%emt 0:00:30]} Rxh8 {[%emt 0:00:02]} 30. Ne3 {[%emt 0:00:30]} Ne2+ {[%emt 0:02:09]} 31. Kg2 {[%emt 0:00:30]} Nf4+ {[%emt 0:00:08]} 1/2-1/2

[Event "Turkish Second League 2019"]
[Site "Konya"]
[Date "2019.07.25"]
[Round "6"]
[White "Donmez, Taha Mert"]
[Black "Demirbag, Alihan"]
[Result "0-1"]
[ECO "A26"]
[WhiteElo "1961"]
[BlackElo "2087"]
[Annotator "NA"]
[PlyCount "72"]
[EventDate "2019.07.22"]
[EventType "team-tourn"]
[EventCountry "TUR"]
[SourceTitle "playchess.com"]
[Source "ChessBase"]
[SourceQuality "1"]
[TimeControl "5400+30"]

1. Nf3 {[%emt 0:00:30]} g6 {[%emt 0:00:30]} 2. c4 {[%emt 0:00:30]} Bg7 {[%emt 0:00:00]} 3. Nc3 {[%emt 0:00:30]} e5 {[%emt 0:00:00]} 4. g3 {[%emt 0:00:30]} Nc6 {[%emt 0:02:30]} 5. Bg2 {[%emt 0:00:30]} d6 {[%emt 0:00:30]} 6. d3 {[%emt 0:00:30]} f5 {[%emt 0:00:30]} 7. O-O {[%emt 0:00:30]} Nf6 {[%emt 0:00:30]} 8. Ne1 {[%emt 0:02:30]} O-O {[%emt 0:00:30]} 9. Nc2 {[%emt 0:00:30]} h6 {[%emt 0:04:30]} 10. Ne3 {[%emt 0:04:30]} Ne7 {[%emt 0:02:30]} 11. b4 {[%emt 0:09:30]} g5 {[%emt 0:01:30]} 12. Bb2 {[%emt 0:06:30]} c6 {[%emt 0:04:30]} 13. b5 {[%emt 0:03:30]} f4 {[%emt 0:08:30]} 14. Nc2 {[%emt 0:01:30]} Be6 {[%emt 0:00:30]} 15. Nb4 {[%emt 0:02:30]} Qd7 {[%emt 0:02:30]} 16. bxc6 {[%emt 0:03:30]} bxc6 {[%emt 0:00:30]} 17. Qa4 {[%emt 0:00:30]} Rac8 {[%emt 0:00:30]} 18. Rab1 {[%emt 0:04:30]} Bh3 {[%emt 0:01:30]} 19. Ne4 {[%emt 0:02:30]} Bxg2 {[%emt 0:07:30]} 20. Kxg2 {[%emt 0:00:30]} g4 {[%emt 0:03:30]} 21. Kg1 {[%emt 0:14:30]} f3 {[%emt 0:03:30]} 22. e3 {[%emt 0:04:30]} Ne8 {[%emt 0:08:30]} 23. Nc2 {[%emt 0:05:30]} Qf5 {[%emt 0:01:30]} 24. Rfd1 {[%emt 0:08:30]} Qh5 {[%emt 0:00:30]} 25. Nd2 {[%emt 0:00:30]} Rc7 {[%emt 0:06:30]} 26. Ba3 {[%emt 0:02:30]} Qh3 {[%emt 0:02:30]} 27. Ne1 {[%emt 0:00:30]} Nf5 {[%emt 0:00:30]} 28. Nf1 {[%emt 0:00:30]} h5 {[%emt 0:02:30]} 29. c5 {[%emt 0:04:21]} d5 {[%emt 0:01:30]} 30. Rb4 {[%emt 0:01:33]} a5 {[%emt 0:05:30]} 31. Qxa5 {[%emt 0:03:45]} d4 {[%emt 0:00:00]} 32. Bc1 {[%emt 0:02:28]} h4 {[%emt 0:04:00]} 33. Rb2 {[%emt 0:05:25]} Rcf7 {[%emt 0:02:30]} 34. Qa4 {[%emt 0:05:25]} hxg3 {[%emt 0:04:30]} 35. hxg3 {[%emt 0:00:32]} Bf6 {[%emt 0:00:52]} 36. Qc4 {[%emt 0:00:53]} Kg7 {[%emt 0:00:11]} 0-1

[Event "Turkish Second League 2019"]
[Site "Konya"]
[Date "2019.07.25"]
[Round "6"]
[White "Yurtoglu, Osman Talha"]
[Black "Kayan, Veli"]
[Result "0-1"]
[ECO "B51"]
[WhiteElo "1923"]
[BlackElo "1863"]
[Annotator "NA"]
[PlyCount "114"]
[EventDate "2019.07.22"]
[EventType "team-tourn"]
[EventCountry "TUR"]
[SourceTitle "playchess.com"]
[Source "ChessBase"]
[SourceQuality "1"]
[TimeControl "5400+30"]

1. e4 {[%emt 0:00:30]} c5 {[%emt 0:00:30]} 2. Nf3 {[%emt 0:00:00]} d6 {[%emt 0:00:30]} 3. d4 {[%emt 0:00:00]} cxd4 {[%emt 0:00:00]} 4. Qxd4 {[%emt 0:00:00]} e5 {[%emt 0:00:00]} 5. Bb5+ {[%emt 0:04:00]} Nd7 {[%emt 0:00:30]} 6. Qd3 {[%emt 0:00:30]} a6 {[%emt 0:01:30]} 7. Bxd7+ {[%emt 0:02:30]} Bxd7 {[%emt 0:00:30]} 8. c4 {[%emt 0:00:30]} h6 {[%emt 0:01:30]} 9. Nc3 {[%emt 0:00:30]} Nf6 {[%emt 0:00:30]} 10. O-O {[%emt 0:00:30]} Be7 {[%emt 0:00:30]} 11. Ne1 {[%emt 0:06:30]} O-O {[%emt 0:01:30]} 12. f4 {[%emt 0:00:30]} b5 {[%emt 0:03:30]} 13. fxe5 {[%emt 0:03:30]} bxc4 {[%emt 0:02:30]} 14. Qg3 {[%emt 0:01:30]} Ng4 {[%emt 0:05:30]} 15. Nf3 {[%emt 0:14:30]} dxe5 {[%emt 0:18:30]} 16. h3 {[%emt 0:24:30]} Bc5+ {[%emt 0:04:30]} 17. Kh1 {[%emt 0:00:30]} f5 {[%emt 0:11:30]} 18. hxg4 {[%emt 0:03:30]} fxg4 {[%emt 0:00:00]} 19. Nh2 {[%emt 0:00:30]} Qb6 {[%emt 0:07:00]} 20. Nd5 {[%emt 0:07:30]} Rxf1+ {[%emt 0:05:30]} 21. Nxf1 {[%emt 0:00:30]} Rf8 {[%emt 0:01:30]} 22. Nh2 {[%emt 0:03:30]} Qb8 {[%emt 0:04:30]} 23. Bd2 {[%emt 0:15:23]} Bf2 {[%emt 0:01:30]} 24. Qc3 {[%emt 0:01:57]} g3 {[%emt 0:00:30]} 25. Qxc4 {[%emt 0:03:36]} Kh7 {[%emt 0:02:30]} 26. Bb4 {[%emt 0:00:57]} Qe8 {[%emt 0:05:30]} 27. Qe2 {[%emt 0:00:37]} Rf7 {[%emt 0:04:43]} 28. Rf1 {[%emt 0:02:12]} Bb5 {[%emt 0:00:36]} 29. Qh5 {[%emt 0:01:08]} g6 {[%emt 0:01:32]} 30. Qh4 {[%emt 0:00:59]} g5 {[%emt 0:08:55]} 31. Qh5 {[%emt 0:00:01]} gxh2 {[%emt 0:00:45]} 32. Nf6+ {[%emt 0:00:09]} Rxf6 {[%emt 0:00:00]} 33. Qxe8 {[%emt 0:01:08]} Bxe8 {[%emt 0:00:00]} 34. Bc5 {[%emt 0:00:00]} Bxc5 {[%emt 0:04:06]} 35. Rxf6 {[%emt 0:00:00]} Bb5 {[%emt 0:00:00]} 36. Kxh2 {[%emt 0:00:06]} Kg7 {[%emt 0:01:16]} 37. Re6 {[%emt 0:00:22]} Bd4 {[%emt 0:00:21]} 38. b3 {[%emt 0:00:20]} h5 {[%emt 0:00:33]} 39. a4 {[%emt 0:00:32]} Bd3 {[%emt 0:00:17]} 40. Rd6 {[%emt 0:00:55]} h4 {[%emt 0:00:43]} 41. Kh3 {[%emt 0:00:21]} Be2 {[%emt 0:00:14]} 42. b4 {[%emt 0:00:58]} Kf7 {[%emt 0:00:54]} 43. b5 {[%emt 0:02:45]} axb5 {[%emt 0:01:14]} 44. axb5 {[%emt 0:00:02]} Bxb5 {[%emt 0:00:44]} 45. Kg4 {[%emt 0:00:03]} Be3 {[%emt 0:00:53]} 46. Kf5 {[%emt 0:00:08]} Bf4 {[%emt 0:00:00]} 47. Rf6+ {[%emt 0:00:12]} Ke7 {[%emt 0:00:35]} 48. Re6+ {[%emt 0:00:10]} Kd8 {[%emt 0:01:44]} 49. Rb6 {[%emt 0:00:11]} Bf1 {[%emt 0:00:00]} 50. Rb2 {[%emt 0:00:15]} h3 {[%emt 0:00:38]} 51. gxh3 {[%emt 0:00:28]} Bxh3+ {[%emt 0:00:06]} 52. Kf6 {[%emt 0:01:33]} Kd7 {[%emt 0:00:22]} 53. Rb7+ {[%emt 0:00:37]} Kc6 {[%emt 0:00:09]} 54. Rh7 {[%emt 0:00:00]} g4 {[%emt 0:01:12]} 55. Rh8 {[%emt 0:00:00]} Bg2 {[%emt 0:00:09]} 56. Kf5 {[%emt 0:00:00]} g3 {[%emt 0:00:10]} 57. Kg4 {[%emt 0:00:17]} Bxe4 {[%emt 0:00:28]} 0-1